fUSD/lending_fUSD_20240915
["ID","MTS","AMOUNT","RATE_DAILY","PERIOD"]
[338241743,1726413055962,-2424.0,0.00014794,2]
[338241744,1726413055972,-1283.48,0.00014794,2]
[338241745,1726413055981,-3107.96,0.00014794,2]
[338241746,1726413055991,-11970.55,0.00014794,2]
[338241747,1726413056005,-4118.3,0.00014794,2]
[338241748,1726413056014,-1935.92,0.00014794,2]
[338241749,1726413056024,-2424.0,0.00014794,2]
[338241750,1726413056035,-1283.48,0.00014794,2]
[338241751,1726413056044,-11970.55,0.00014794,2]
[338241752,1726413056054,-3107.96,0.00014794,2]
[338241753,1726413056063,-4118.3,0.00014794,2]
[338241754,1726413056075,-1936.14225313,0.00014794,2]
[338241755,1726413056085,-2424.0,0.00014794,2]
[338241756,1726413056095,-1283.48,0.00014794,2]
[338241757,1726413056104,-3107.96,0.00014794,2]
[338241758,1726413056114,-11970.55,0.00014794,2]
[338241759,1726413056123,-4118.3,0.00014794,2]
[338241760,1726413056133,-2424.0,0.00014794,2]
[338241761,1726413056143,-1283.48,0.00014794,2]
[338241762,1726413056152,-3107.96,0.00014794,2]
[338241763,1726413056163,-11970.55,0.00014794,2]
[338241764,1726413056172,-4118.3,0.00014794,2]
[338241765,1726413056182,-1283.48,0.00014794,2]
[338241766,1726413056191,-2424.0,0.00014794,2]
[338241767,1726413056201,-3107.96,0.00014794,2]
[338241768,1726413056210,-11970.55,0.00014794,2]
[338241769,1726413056220,-1283.48,0.00014794,2]
[338241770,1726413056229,-2424.0,0.00014794,2]
[338241771,1726413056239,-4118.3,0.00014794,2]
[338241772,1726413056249,-3107.96,0.00014794,2]
[338241773,1726413056258,-11970.55,0.00014794,2]
[338241774,1726413056267,-1283.48,0.00014794,2]
[338241775,1726413056278,-4118.3,0.00014794,2]
[338241776,1726413056288,-2424.0,0.00014794,2]
[338241777,1726413056297,-3107.96,0.00014794,2]
[338241778,1726413056308,-11970.55,0.00014794,2]
[338241779,1726413056317,-1283.48,0.00014794,2]
[338241780,1726413056328,-4118.3,0.00014794,2]
[338241781,1726413056338,-2424.0,0.00014794,2]
[338241782,1726413056348,-11970.55,0.00014794,2]
[338241783,1726413056357,-1283.48,0.00014794,2]
[338241784,1726413056367,-500.0,0.00014794,2]
[338241785,1726413056376,-2424.0,0.00014794,2]
[338241786,1726413056385,-11970.55,0.00014794,2]
[338241787,1726413056394,-3107.96,0.00014794,2]
[338241788,1726413056404,-1283.48,0.00014794,2]
[338241789,1726413056413,-154.879783,0.00014794,2]
[338241790,1726413056423,-500.0,0.00014794,2]
[338241791,1726413056432,-2424.0,0.00014794,2]
[338241792,1726413056441,-11970.55,0.00014794,2]
[338241793,1726413056451,-1283.48,0.00014794,2]
[338241794,1726413056460,-2331.87,0.00014794,2]
[338241795,1726413056470,-3107.96,0.00014794,2]
[338241796,1726413056479,-500.0,0.00014794,2]
[338241797,1726413056488,-4118.3,0.00014794,2]
[338241798,1726413056498,-2424.04472413,0.00014794,2]
[338241799,1726413056509,-2331.87,0.00014794,2]
[338241800,1726413056520,-1283.48,0.00014794,2]
[338241801,1726413056530,-500.0,0.00014794,2]
[338241802,1726413056539,-11970.55,0.00014794,2]
[338241803,1726413056548,-4118.3,0.00014794,2]
[338241804,1726413056558,-2331.87,0.00014794,2]
[338241805,1726413056567,-1283.48,0.00014794,2]
[338241806,1726413056577,-500.0,0.00014794,2]
[338241807,1726413056587,-11970.55,0.00014794,2]
[338241808,1726413056596,-4118.3,0.00014794,2]
[338241809,1726413056606,-3107.96,0.00014794,2]
[338241810,1726413056615,-2331.87,0.00014794,2]
[338241811,1726413056625,-1283.48,0.00014794,2]
[338241812,1726413056634,-11970.55642462,0.00014794,2]
[338241813,1726413056643,-4118.3,0.00014794,2]
[338241814,1726413056653,-1273.96496393,0.00014794,2]
[338241815,1726413149109,176.4,0.00010959,2]
[338241816,1726413160887,500.0,0.00011164,2]
[338241817,1726413185284,624.77,0.00011801,2]
[338241818,1726413208863,500.0,0.00011164,2]
[338241819,1726413248404,500.0,0.00011164,2]
[338241820,1726413300187,501.6808368,0.00011164,2]
[338241821,1726413317829,500.0,0.00011164,2]
[338241823,1726413700825,654.83,0.00011231,2]
[338241824,1726413757265,155.4,0.00010959,2]
[338241825,1726413800327,1050.0,0.00011,2]
[338241826,1726413929543,2850.0,0.000101,2]
[338241827,1726413946507,819.95,0.00010959,2]
[338241829,1726414144502,160.2,0.0001241,2]
[338241831,1726414161821,250.0,0.00012372,2]
[338241840,1726414180022,622.08,0.00010492,2]
[338241849,1726414231867,-796.0,0.00012641,2]
[338241851,1726414231878,-206.4631329,0.00012641,2]
[338241852,1726414231887,-622.08,0.00012756,2]
[338241853,1726414231898,-300.0,0.00012799,2]
[338241854,1726414231908,-150.0,0.00012799,2]
[338241855,1726414231918,-479.0013,0.000128,2]
[338241856,1726414231928,-233.81351467,0.000128,2]
[338241857,1726414231940,-2000.0,0.000128,2]
[338241858,1726414231952,-3147.79169225,0.000128,2]
[338241859,1726414231961,-600.0,0.00012859,2]
[338241860,1726414231971,-2961.09337123,0.0001288,2]
[338241861,1726414231986,-16570.37783984,0.0001288,2]
[338241862,1726414232016,-389.84087267,0.0001288,2]
[338241863,1726414232030,-7517.22981859,0.0001288,2]
[338241864,1726414232043,-290.16336359,0.0001288,2]
[338241865,1726414232056,-5649.28327191,0.0001288,2]
[338241866,1726414232069,-665.7463285,0.0001288,2]
[338241867,1726414232091,-945.04135894,0.0001288,2]
[338241868,1726414232103,-4603.03995499,0.0001288,2]
[338241869,1726414232116,-3106.15268631,0.0001288,2]
[338241870,1726414232129,-312.4205569,0.0001288,2]
[338241871,1726414232145,-2034.3771887,0.0001288,2]
[338241872,1726414232157,-401.44091038,0.0001288,2]
[338241873,1726414232173,-342.6078,0.0001288,2]
[338241874,1726414232185,-1601.38575,0.0001288,2]
[338241875,1726414232197,-25068.12523185,0.0001288,2]
[338241876,1726414232207,-2804.7905,0.000129,2]
[338241877,1726414232217,-11885.455,0.000129,2]
[338241878,1726414232229,-2665.5762,0.000129,2]
[338241879,1726414232239,-8172.70764683,0.000129,2]
[338241880,1726414232249,-151.0330361,0.000129,2]
[338241881,1726414232259,-1449.68197714,0.000129,2]
[338241882,1726414232269,-7914.07138518,0.000129,2]
[338241883,1726414232279,-2530.32236215,0.000129,2]
[338241884,1726414232293,-469.57640226,0.000129,2]
[338241885,1726414232323,-806.59811442,0.000129,2]
[338241886,1726414232337,-327.80327341,0.000129,2]
[338241887,1726414232347,-300.0,0.000129,2]
[338241888,1726414232358,-261.34822203,0.00012973,2]
[338241889,1726414232371,-238.65177797,0.00012973,2]
[338241890,1726414232382,-61.03822213,0.0001299,2]
[338241891,1726414232395,-89.10177787,0.0001299,2]
[338241892,1726414232405,-150.14,0.0001299,2]
[338241893,1726414232415,-150.14,0.0001299,2]
[338241894,1726414232425,-150.14,0.0001299,2]
[338241895,1726414232435,-150.14,0.0001299,2]
[338241896,1726414232452,-150.14,0.0001299,2]
[338241897,1726414232463,-12338.12122042,0.00012997,2]
[338241898,1726414232476,-460.19652237,0.00012997,2]
[338241899,1726414232548,-1354.18158522,0.00012997,2]
[338241900,1726414232560,-382.31751455,0.00012997,2]
[338241901,1726414232571,-432.000004,0.00012997,2]
[338241902,1726414232583,-827.93791736,0.00012997,2]
[338241903,1726414232627,-335.08950845,0.00012997,2]
[338241904,1726414232639,-276.52,0.00012997,2]
[338241905,1726414232650,-846.08694448,0.00012997,2]
[338241906,1726414232662,-702.93574009,0.00012997,2]
[338241907,1726414232674,-250.0,0.00012997,2]
[338241908,1726414232686,-752.76793986,0.00012997,2]
[338241910,1726414238130,-422.44759378,0.00012973,2]
[338241911,1726414238143,-1774.53023515,0.00012997,2]
[338241912,1726414238154,-169.0686501,0.00012999,2]
[338241913,1726414238164,-500.0,0.00012999,2]
[338241914,1726414238174,-500.0,0.00012999,2]
[338241915,1726414238185,-477.57405775,0.00012999,2]
[338241916,1726414238195,-606.64,0.00013,2]
[338241917,1726414238205,-499.99,0.00013,2]
[338241918,1726414238215,-698197.6889076,0.00013,2]
[338241919,1726414238226,-1007.86,0.00013,2]
[338241920,1726414238236,-4372068.04384544,0.00013,2]
[338241921,1726414238257,-3518.42141193,0.00013,2]
[338241922,1726414238269,-5241.13075619,0.00013,2]
[338241923,1726414238286,-50702.62269589,0.00013,2]
[338241924,1726414238299,-1608.02385753,0.00013,2]
[338241925,1726414238311,-63491.59336379,0.00013,2]
[338241926,1726414238323,-18729.93804003,0.00013,2]
[338241927,1726414238335,-6900.74336425,0.00013,2]
[338242046,1726414240028,-582114.93641709,0.00013,2]
[338242047,1726414240180,-373.56117198,0.00013,2]
[338242048,1726414240192,-1834.245,0.00013,2]
[338242049,1726414240203,-347.0009995,0.00013,2]
[338242050,1726414240215,-5941.76094401,0.00013,2]
[338242051,1726414240227,-7565.55819903,0.00013,2]
[338242070,1726414242969,-4078.9714258,0.00013,2]
[338242071,1726414242982,-1011.21766666,0.00013,2]
[338242072,1726414242994,-1000.0,0.00013,2]
[338242073,1726414243024,-267.9483656,0.00013,2]
[338242074,1726414243174,-38532.7306735,0.00013,2]
[338242075,1726414243187,-8679.59506081,0.00013,2]
[338242076,1726414243200,-610.20934057,0.00013,2]
[338242079,1726414244701,-445.70504057,0.00013,2]
[338242080,1726414244725,-1605.35180376,0.00013,2]
[338242081,1726414244737,-234416.23117203,0.00013,2]
[338242082,1726414244750,-6160.50534124,0.00013,2]
[338242083,1726414246008,-2660.46376001,0.00013,2]
[338242084,1726414246020,-708.1,0.00013,2]
[338242085,1726414246047,-1216.07779227,0.00013,2]
[338242086,1726414246094,-3648.9525255,0.00013,2]
[338242087,1726414246343,-1294.63954852,0.00013,2]
[338242088,1726414246355,-634.92878983,0.00013,2]
[338242089,1726414246371,-431.22961645,0.00013,2]
[338242090,1726414246383,-6751.79144901,0.00013,2]
[338242091,1726414246395,-275.54163431,0.00013,2]
[338242096,1726414373632,207.22,0.00010959,2]
[338242097,1726414404884,13735.6891,0.00012541,2]
[338242098,1726414658282,250.0,0.00012254,2]
[338242099,1726414738494,1446.15,0.00012358,2]
[338242100,1726414820883,617.15,0.00010333,2]
[338242101,1726414821089,617.15,0.00012597,2]
[338242102,1726414833051,322.68,0.00012279,2]
[338242103,1726414863468,2000.0,0.0001231,2]
[338242104,1726414917170,1000.0,0.00012272,2]
[338242105,1726414997863,250.0,0.00012309,2]
[338242106,1726415022154,164.77,0.00012297,2]
[338242107,1726415053173,158.52,0.00012292,2]
[338242108,1726415053539,250.0,0.00012292,2]
[338242109,1726415180384,250.0,0.00012258,2]
[338242110,1726415188685,246.64,0.00012282,2]
[338242111,1726415228284,200.0,0.00012231,2]
[338242112,1726415283913,7363.32,0.0001225,2]
[338242113,1726415293289,150.0,0.00012274,2]
[338242114,1726415334459,582.2,0.00010357,2]
[338242115,1726415334691,582.2,0.00012621,2]
[338242117,1726415364587,161.34,0.00012265,2]
[338242120,1726415404921,200.0,0.00012258,2]
[338242121,1726415420263,173.76,0.00012258,2]
[338242122,1726415420476,173.76,0.0001227,2]
[338242123,1726415420733,173.76,0.00012282,2]
[338242124,1726415420932,173.76,0.00012294,2]
[338242125,1726415421159,173.76,0.00012307,2]
[338242126,1726415421371,173.76,0.00012319,2]
[338242141,1726415431980,-175.66,0.00012661,2]
[338242143,1726415431991,-167.0,0.00012696,2]
[338242145,1726415432000,-394.7977753,0.00012876,2]
[338242147,1726415432010,-150.0,0.00012877,2]
[338242149,1726415432019,-287.3022247,0.00012899,2]
[338242151,1726415432031,-2813.42782577,0.00012899,2]
[338242152,1726415432041,-4782.1464592,0.00012899,2]
[338242153,1726415432346,-495.39189458,0.00012899,2]
[338242154,1726415432356,-150.0,0.00012899,2]
[338242155,1726415432366,-995.26416403,0.000129,2]
[338242156,1726415432378,-1300.0,0.000129,2]
[338242157,1726415432389,-1928.20760668,0.000129,2]
[338242158,1726415432402,-1371.79239332,0.000129,2]
[338242159,1726415432416,-10760.41143597,0.000129,2]
[338242160,1726415432425,-363.42,0.000129,2]
[338242161,1726415432435,-222.7304,0.000129,2]
[338242162,1726415432445,-1257.5934,0.000129,2]
[338242163,1726415432454,-3515.1513,0.000129,2]
[338242164,1726415432463,-174.603,0.000129,2]
[338242165,1726415432473,-7500.0,0.000129,2]
[338242166,1726415432482,-1168.1644,0.000129,2]
[338242167,1726415432491,-7981.88080355,0.000129,2]
[338242168,1726415432502,-281.7840473,0.000129,2]
[338242169,1726415432513,-727.61600379,0.000129,2]
[338242170,1726415432523,-151.03303605,0.000129,2]
[338242171,1726415432535,-307.12609914,0.000129,2]
[338242172,1726415432545,-500.0,0.00012973,2]
[338242173,1726415432559,-500.0,0.00012973,2]
[338242174,1726415432568,-152.83,0.0001299,2]
[338242175,1726415432578,-2526.42,0.0001299,2]
[338242176,1726415432587,-152.83,0.0001299,2]
[338242177,1726415432596,-152.83,0.0001299,2]
[338242178,1726415432605,-152.83,0.0001299,2]
[338242179,1726415432614,-152.83,0.0001299,2]
[338242180,1726415432626,-152.83,0.0001299,2]
[338242181,1726415432637,-152.83,0.0001299,2]
[338242182,1726415432648,-152.83,0.0001299,2]
[338242183,1726415432659,-152.83,0.0001299,2]
[338242184,1726415432669,-152.83,0.0001299,2]
[338242185,1726415432678,-152.83,0.0001299,2]
[338242186,1726415432687,-885.9,0.00013,2]
[338242187,1726415432696,-331302.87548689,0.00013,2]
[338242188,1726415432720,-4912.0367572,0.00013,2]
[338242189,1726415432731,-992.66043738,0.00013,2]
[338242200,1726415438169,-25264.55785043,0.00013,2]
[338242201,1726415438223,-590.0,0.00013,2]
[338242202,1726415438237,-91363.31227902,0.00013,2]
[338242203,1726415438247,-220020.15517636,0.00013,2]
[338242204,1726415438329,-3000.60438524,0.00013,2]
[338242205,1726415438385,-29561.64748557,0.00013,2]
[338242207,1726415438397,-540.66132002,0.00013,2]
[338242320,1726415440019,-28332.41412583,0.00013,2]
[338242321,1726415440176,-530.86535505,0.00013,2]
[338242322,1726415440230,-358644.98409755,0.00013,2]
[338242354,1726415443020,-411.7493109,0.00013,2]
[338242367,1726415443127,-17782.1914082,0.00013,2]
[338242374,1726415444410,-4675.74706937,0.00013,2]
[338242375,1726415444423,-5350.19999999,0.00013,2]
[338242376,1726415444434,-1377.74172289,0.00013,2]
[338242377,1726415444447,-413.1164353,0.00013,2]
[338242378,1726415444463,-400.30481951,0.00013,2]
[338242379,1726415444475,-500.0,0.00013,2]
[338242383,1726415446024,-1141.6,0.00013,2]
[338242384,1726415446036,-6048.65000081,0.00013,2]
[338242385,1726415446077,-432.5,0.00013,2]
[338242386,1726415446089,-1529.65936875,0.00013,2]
[338242387,1726415446102,-4666.27831828,0.00013,2]
[338242388,1726415446132,-6882.92088896,0.00013,2]
[338242389,1726415446144,-3077.64182638,0.00013,2]
[338242390,1726415446189,-295.25514135,0.00013,2]
[338242391,1726415446201,-2479.97084612,0.00013,2]
[338242392,1726415446214,-594.96858718,0.00013,2]
[338242393,1726415446226,-1038.35471387,0.00013,2]
[338242394,1726415446238,-721.62621433,0.00013,2]
[338242395,1726415446250,-2858.56287337,0.00013,2]
[338242396,1726415446263,-2189.5392959,0.00013,2]
[338242397,1726415446275,-383.87296915,0.00013,2]
[338242398,1726415446287,-93072.95744073,0.00013,2]
[338242399,1726415446299,-5885.29271783,0.00013,2]
[338242400,1726415446312,-2138.05675716,0.00013,2]
[338242401,1726415446327,-1834.85362429,0.00013,2]
[338242402,1726415446340,-1458.83968283,0.00013,2]
[338242403,1726415446352,-409.14193754,0.00013,2]
[338242404,1726415446364,-6172.81784563,0.00013,2]
[338242405,1726415446389,-12252.62796563,0.00013,2]
[338242406,1726415446401,-717.12394233,0.00013,2]
[338242407,1726415446413,-684.36699985,0.00013,2]
[338242408,1726415446425,-1741.01490028,0.00013,2]
[338242409,1726415446438,-3035.9509973,0.00013,2]
[338242410,1726415446449,-352.28688674,0.00013,2]
[338242411,1726415446461,-3365.01986748,0.00013,2]
[338242412,1726415446473,-11353.29085788,0.00013,2]
[338242415,1726415446495,-1195.57080635,0.00013,2]
[338242419,1726415457679,200.0,0.000124,4]
[338242420,1726415459776,500.0,0.000125,4]
[338242421,1726415461877,800.0,0.000126,4]
[338242422,1726415480702,11509.0,0.000102,5]
[338242423,1726415550721,5582.88,0.00012629,2]
[338242424,1726415556638,150.11,0.00010959,2]
[338242425,1726415567185,750.56,0.00010959,2]
[338242589,1726415602789,1050.0,0.00011,2]
[338242590,1726415626451,250.0,0.00012203,2]
[338242591,1726415670555,250.0,0.00012203,2]
[338242592,1726415671570,500.0,0.00011164,2]
[338242599,1726415750414,167.0,0.00012577,2]
[338242600,1726415830280,157.95,0.00012113,2]
[338242601,1726415848648,577.02,0.00010203,2]
[338242602,1726415848921,577.02,0.00012467,2]
[338242603,1726415991644,183.07,0.00012121,2]
[338242604,1726416018369,1000.0,0.0001214,2]
[338242607,1726416129631,250.0,0.00012126,2]
[338242608,1726416160733,250.0,0.00012113,2]
[338242609,1726416240180,176.0,0.00012614,2]
[338242610,1726416403924,478.18,0.00012148,2]
[338242611,1726416410673,1558.11,0.00012231,2]
[338242612,1726416438247,300.0,0.000124,4]
[338242613,1726416440352,600.0,0.000125,4]
[338242614,1726416442442,900.0,0.000126,4]
[338242615,1726416450806,150.0,0.00014824,120]
[338242616,1726416479454,544.28,9.904e-05,2]
[338242617,1726416479693,544.28,0.00012167,2]
[338242618,1726416534744,174.62,0.00011824,2]
[338242619,1726416558631,193.94,0.0001182,2]
[338242620,1726416588773,1000.0,0.00012612,2]
[338242621,1726416630532,1000.0,0.0001182,2]
[338242634,1726416632196,-150.0,0.000127,2]
[338242635,1726416632206,-1200.0,0.000127,4]
[338242636,1726416632215,-150.0,0.00012707,2]
[338242637,1726416632226,-250.37,0.00012709,2]
[338242638,1726416632236,-150.0,0.00012715,2]
[338242639,1726416632245,-504.581576,0.00012715,2]
[338242640,1726416632255,-150.0,0.00012718,2]
[338242641,1726416632265,-150.0,0.00012727,2]
[338242642,1726416632274,-150.0,0.00012738,2]
[338242643,1726416632284,-150.0,0.0001275,2]
[338242644,1726416632293,-150.0,0.00012753,2]
[338242645,1726416632303,-1689.48,0.00012753,2]
[338242646,1726416632313,-150.0,0.00012755,2]
[338242647,1726416632322,-499.99,0.00012755,2]
[338242648,1726416632332,-150.0,0.00012756,2]
[338242649,1726416632341,-150.0,0.00012764,2]
[338242650,1726416632351,-150.0,0.00012774,2]
[338242651,1726416632360,-150.0,0.00012776,2]
[338242652,1726416632370,-150.0,0.00012777,2]
[338242653,1726416632379,-150.0,0.00012785,2]
[338242654,1726416632389,-150.0,0.00012785,2]
[338242655,1726416632398,-150.0,0.00012794,2]
[338242656,1726416632407,-5865.09333828,0.000128,2]
[338242657,1726416632419,-1255.12,0.000128,2]
[338242658,1726416632431,-63.47938487,0.000128,2]
[338242659,1726416632440,-817.84120271,0.000128,4]
[338242660,1726416632451,-682.15879729,0.000128,4]
[338242661,1726416632461,-4713.22239328,0.000128,2]
[338242662,1726416632472,-1412.14945512,0.000128,2]
[338242663,1726416632483,-334.9825516,0.000128,2]
[338242664,1726416632496,-150.0,0.00012805,2]
[338242665,1726416632506,-487.03368496,0.00012806,2]
[338242666,1726416632515,-150.0,0.0001281,2]
[338242667,1726416632525,-150.0,0.0001283,2]
[338242669,1726416632535,-150.0,0.0001283,2]
[338242671,1726416632544,-1265.48531643,0.00012852,2]
[338242673,1726416632553,-150.0,0.0001286,2]
[338242674,1726416632563,-150.0,0.00012861,2]
[338242675,1726416632573,-150.0,0.00012862,2]
[338242676,1726416632582,-150.0,0.00012864,2]
[338242678,1726416632592,-1937.61143,0.0001287,2]
[338242679,1726416632602,-1937.61143,0.0001287,2]
[338242680,1726416632615,-1909.72558701,0.0001287,2]
[338242681,1726416632635,-27.88584299,0.0001287,2]
[338242682,1726416632645,-500.0,0.00012873,2]
[338242683,1726416632656,-150.0,0.00012885,2]
[338242684,1726416632666,-230.6938944,0.00012897,2]
[338242685,1726416632675,-1431.05,0.00012897,2]
[338242686,1726416632685,-1959.02551993,0.000129,2]
[338242687,1726416632697,-4212.6311127,0.000129,2]
[338242688,1726416632708,-5621.07153573,0.000129,2]
[338242689,1726416632720,-22658.45920343,0.000129,2]
[338242690,1726416632731,-983.93,0.000129,2]
[338242691,1726416632743,-862.70147104,0.000129,2]
[338242692,1726416632755,-351.89855854,0.000129,2]
[338242693,1726416632767,-1895.56766088,0.000129,2]
[338242694,1726416632779,-21606.40863775,0.000129,2]
[338242695,1726416632789,-200985.1639,0.000129,2]
[338242696,1726416632798,-13258.92143831,0.000129,2]
[338242697,1726416632810,-5203.83966169,0.000129,2]
[338242698,1726416632819,-671.7023,0.000129,2]
[338242699,1726416632829,-166.39250321,0.000129,2]
[338242700,1726416632839,-1129.9905141,0.000129,2]
[338242701,1726416632851,-905.36012168,0.000129,2]
[338242702,1726416632862,-549.52917014,0.000129,2]
[338242703,1726416632874,-793.35,0.000129,2]
[338242704,1726416632886,-2670.21,0.000129,2]
[338242705,1726416632901,-664.57727663,0.000129,2]
[338242706,1726416632912,-295.33202042,0.000129,2]
[338242707,1726416632923,-1974.18309637,0.000129,2]
[338242708,1726416632934,-750.26546194,0.000129,2]
[338242709,1726416632945,-1266.60175907,0.000129,2]
[338242720,1726416638234,-7483.08057965,0.000129,2]
[338242721,1726416638244,-1424.86,0.000129,2]
[338242722,1726416638255,-19999.99,0.000129,2]
[338242723,1726416638265,-6684.62,0.000129,2]
[338242724,1726416638274,-1330.64042011,0.000129,2]
[338242726,1726416638286,-645.49882476,0.000129,2]
[338242727,1726416638306,-4730.42695513,0.000129,2]
[338242728,1726416638315,-300.0,0.000129,4]
[338242729,1726416638324,-4001.09047766,0.000129,2]
[338242730,1726416638334,-485.07733586,0.000129,2]
[338242731,1726416638344,-308.4101677,0.000129,2]
[338242732,1726416638353,-150.0,0.00012907,2]
[338242733,1726416638363,-150.0,0.00012915,2]
[338242734,1726416638373,-150.0,0.0001292,2]
[338242735,1726416638382,-150.0,0.00012922,2]
[338242736,1726416638392,-150.0,0.00012924,2]
[338242737,1726416638402,-150.0,0.00012931,2]
[338242738,1726416638412,-150.0,0.00012934,2]
[338242739,1726416638421,-150.0,0.00012934,2]
[338242740,1726416638431,-150.0,0.00012938,2]
[338242741,1726416638441,-150.0,0.00012945,2]
[338242742,1726416638450,-150.0,0.00012968,2]
[338242743,1726416638460,-500.0,0.00012973,2]
[338242744,1726416638470,-500.26774066,0.00012973,2]
[338242745,1726416638480,-500.38490398,0.00012973,2]
[338242746,1726416638490,-500.0,0.00012973,2]
[338242747,1726416638500,-203.40543155,0.00012973,2]
[338242748,1726416638510,-500.0,0.00012973,2]
[338242749,1726416638520,-500.0,0.00012973,2]
[338242750,1726416638530,-150.39,0.0001299,2]
[338242751,1726416638540,-537.9419557,0.0001299,2]
[338242752,1726416638550,-537.9419557,0.0001299,2]
[338242753,1726416638560,-537.9419557,0.0001299,2]
[338242754,1726416638570,-420.6543901,0.00012999,2]
[338242755,1726416638580,-500.0,0.00012999,2]
[338242756,1726416638589,-276.57559879,0.00012999,2]
[338242757,1726416638599,-500.0,0.00012999,2]
[338242758,1726416638611,-500.0,0.00012999,2]
[338242759,1726416638621,-500.0,0.00012999,2]
[338242760,1726416638630,-1000.0,0.00012999,2]
[338242761,1726416638640,-3727.03724968,0.00013,2]
[338242762,1726416638653,-929.30964568,0.00013,2]
[338242763,1726416638664,-3181.070885,0.00013,2]
[338242764,1726416638676,-1109.26027776,0.00013,2]
[338242766,1726416638690,-4936.4916975,0.00013,2]
[338242769,1726416638701,-348.23005832,0.00013,2]
[338242771,1726416638713,-452.64,0.00013,2]
[338242773,1726416638725,-699.38146804,0.00013,2]
[338242775,1726416638737,-308.42346545,0.00013,2]
[338242777,1726416638750,-596.08,0.00013,2]
[338242779,1726416638762,-1921.952907,0.00013,2]
[338242782,1726416638779,-880.12,0.00013,2]
[338242784,1726416638791,-14748.76972363,0.00013,2]
[338242787,1726416638807,-854.34805812,0.00013,2]
[338242789,1726416638818,-955.43437236,0.00013,2]
[338242791,1726416638830,-451.57864314,0.00013,2]
[338242793,1726416638841,-53291.08238753,0.00013,2]
[338242835,1726416639907,-49623.65725393,0.00013,2]
[338242836,1726416639919,-898.13415157,0.00013,2]
[338242837,1726416639930,-5545.7965783,0.00013,2]
[338242838,1726416639948,-79179.05201514,0.00013,2]
[338242839,1726416639960,-1372.2,0.00013,2]
[338242844,1726416640148,-489.17891229,0.00013,2]
[338242845,1726416640162,-662.68309162,0.00013,2]
[338242846,1726416640200,-323.21934277,0.00013,2]
[338242847,1726416640211,-390.46000067,0.00013,2]
[338242848,1726416640223,-9876.60459717,0.00013,2]
[338242849,1726416640234,-511.70455756,0.00013,2]
[338242850,1726416640245,-796.28249317,0.00013,2]
[338242851,1726416640257,-256374.3067421,0.00013,2]
[338242852,1726416640267,-311331.00104595,0.00013,2]
[338242853,1726416640278,-215039.92691491,0.00013,2]
[338242854,1726416640290,-344475.0874631,0.00013,2]
[338242855,1726416640301,-927.22751103,0.00013,2]
[338242856,1726416640313,-2400.0,0.00013,2]
[338242857,1726416640324,-828.52209999,0.00013,2]
[338242858,1726416640335,-2833.27897858,0.00013,2]
[338242859,1726416640347,-359.73920831,0.00013,2]
[338242860,1726416640358,-331.44623355,0.00013,2]
[338242861,1726416640369,-985.8689958,0.00013,2]
[338242862,1726416640380,-714.13926867,0.00013,2]
[338242863,1726416640391,-1001.60210072,0.00013,2]
[338242864,1726416640406,-8289.3,0.00013,2]
[338242865,1726416640418,-20973.64934183,0.00013,2]
[338242866,1726416640429,-2586.02150144,0.00013,2]